fUST/lending_fUST_20250928
["ID","MTS","AMOUNT","RATE_DAILY","PERIOD"]
[388065558,1758997864675,-2102.96,0.00035616,9]
[388065559,1758997864685,-2102.96,0.00035616,9]
[388065560,1758997864695,-480.0,0.00035616,9]
[388065561,1758997864705,-2102.96,0.00035616,9]
[388065562,1758997864715,-2102.96,0.00035616,9]
[388065563,1758997864725,-2102.96,0.00035616,9]
[388065564,1758997864735,-2102.96,0.00035616,9]
[388065565,1758997864744,-480.0,0.00035616,9]
[388065566,1758997864753,-2102.96,0.00035616,9]
[388065567,1758997864763,-2102.96,0.00035616,9]
[388065568,1758997864772,-2102.96,0.00035616,9]
[388065569,1758997864782,-2102.96,0.00035616,9]
[388065570,1758997864791,-2102.96,0.00035616,9]
[388065571,1758997864800,-2102.96,0.00035616,9]
[388065572,1758997864810,-2102.96,0.00035616,9]
[388065573,1758997864820,-2102.96,0.00035616,9]
[388065574,1758997864830,-480.0,0.00035616,9]
[388065575,1758997864839,-2102.96,0.00035616,9]
[388065576,1758997864848,-2102.96,0.00035616,9]
[388065577,1758997864857,-480.0,0.00035616,9]
[388065578,1758997864867,-2102.96,0.00035616,9]
[388065579,1758997864877,-480.0,0.00035616,9]
[388065580,1758997864888,-2102.96,0.00035616,9]
[388065581,1758997864897,-2102.96,0.00035616,9]
[388065582,1758997864906,-2102.96996008,0.00035616,9]
[388065583,1758997864916,-480.0,0.00035616,9]
[388065584,1758997864925,-483.19351218,0.00035616,9]
[388065585,1758997864935,-1000.0,0.00035616,9]
[388065586,1758997864945,-527.42,0.00035616,9]
[388065587,1758997864954,-633.24,0.00035616,9]
[388065588,1758997864965,-480.0,0.00035616,9]
[388065589,1758997864975,-2619.2,0.00035616,9]
[388065590,1758997864985,-480.0,0.00035616,9]
[388065591,1758997864996,-480.0,0.00035616,9]
[388065592,1758997865006,-500.0,0.00035616,9]
[388065593,1758997865015,-500.0,0.00035616,9]
[388065594,1758997865025,-500.0,0.00035616,9]
[388065595,1758997865035,-322.38826387,0.00035616,9]
[388065596,1758997865045,-487.52820443,0.00035616,9]
[388065597,1758997865055,-480.0,0.00035616,9]
[388065598,1758997865064,-480.0,0.00035616,9]
[388065599,1758997865074,-480.0,0.00035616,9]
[388065600,1758997865085,-480.0,0.00035616,9]
[388065601,1758997865094,-480.0,0.00035616,9]
[388065602,1758997865103,-480.0,0.00035616,9]
[388065603,1758997865113,-547.97,0.00035616,9]
[388065604,1758997865123,-1684.93,0.00035616,9]
[388065605,1758997865132,-480.0,0.00035616,9]
[388065606,1758997865142,-480.0,0.00035616,9]
[388065607,1758997865151,-480.0,0.00035616,9]
[388065608,1758997865162,-1174.56,0.00035616,9]
[388065609,1758997865175,-480.0,0.00035616,9]
[388065610,1758997865185,-480.0,0.00035616,9]
[388065611,1758997865195,-500.0,0.00035616,9]
[388065612,1758997865204,-1801.25,0.00035616,9]
[388065613,1758997865215,-480.0,0.00035616,9]
[388065614,1758997865225,-480.0,0.00035616,9]
[388065615,1758997865234,-480.0,0.00035616,9]
[388065616,1758997865244,-388.02461502,0.00035616,9]
[388065617,1758997865253,-500.0,0.00035616,9]
[388065618,1758997865263,-481.11371741,0.00035616,9]
[388065619,1758997865272,-480.0,0.00035616,9]
[388065620,1758997865281,-999.0,0.00035616,120]
[388065621,1758997865291,-480.0,0.00035616,9]
[388065622,1758997865301,-480.0,0.00035616,9]
[388065623,1758997865311,-480.0,0.00035616,9]
[388065624,1758997865321,-480.0,0.00035616,9]
[388065625,1758997865330,-480.0,0.00035616,9]
[388065626,1758997865339,-480.0,0.00035616,9]
[388065627,1758997865349,-480.0,0.00035616,9]
[388065628,1758997865358,-2558.39,0.00035616,9]
[388065629,1758997865367,-480.0,0.00035616,9]
[388065630,1758997865377,-480.0,0.00035616,9]
[388065631,1758997865386,-480.0,0.00035616,9]
[388065632,1758997865396,-480.0,0.00035616,9]
[388065633,1758997865411,-480.0,0.00035616,9]
[388065634,1758997865421,-1059.26,0.00035616,9]
[388065635,1758997865431,-1304.54,0.00035616,9]
[388065636,1758997865440,-711.67,0.00035616,9]
[388065637,1758997865451,-1965.18,0.00035616,9]
[388065638,1758997865461,-480.0,0.00035616,9]
[388065639,1758997865471,-480.0,0.00035616,9]
[388065640,1758997865481,-9329.3,0.00035616,9]
[388065641,1758997865491,-8808.17,0.00035616,9]
[388065642,1758997865501,-566.42,0.00035616,9]
[388065643,1758997865510,-480.0,0.00035616,9]
[388065644,1758997865519,-2909.06,0.00035616,9]
[388065645,1758997865530,-480.0,0.00035616,9]
[388065646,1758997865539,-480.0,0.00035616,9]
[388065647,1758997865549,-480.0,0.00035616,9]
[388065648,1758997865559,-480.0,0.00035616,9]
[388065649,1758997865569,-480.0,0.00035616,9]
[388065650,1758997865578,-480.0,0.00035616,9]
[388065651,1758997865589,-480.0,0.00035616,9]
[388065652,1758997865599,-1573.34,0.00035616,9]
[388065653,1758997865608,-480.0,0.00035616,9]
[388065654,1758997865618,-480.0,0.00035616,9]
[388065655,1758997865628,-480.0,0.00035616,9]
[388065656,1758997865638,-480.0,0.00035616,9]
[388065657,1758997865647,-480.0,0.00035616,9]
[388065658,1758997865657,-1047.23,0.00035616,9]
[388065659,1758997865666,-480.0,0.00035616,9]
[388065660,1758997865677,-480.0,0.00035616,9]
[388065661,1758997865688,-480.0,0.00035616,9]
[388065662,1758997865697,-2419.24,0.00035616,9]
[388065663,1758997865707,-480.0,0.00035616,9]
[388065664,1758997865717,-480.0,0.00035616,9]
[388065665,1758997865727,-480.0,0.00035616,9]
[388065666,1758997865737,-453.75825245,0.00035616,9]
[388065667,1758997865747,-500.0,0.00035616,2]
[388065668,1758997865756,-500.0,0.00035616,2]
[388065669,1758997865767,-535.37,0.00035616,9]
[388065670,1758997865776,-480.0,0.00035616,9]
[388065671,1758997865786,-748.96,0.00035616,9]
[388065672,1758997865796,-480.0,0.00035616,9]
[388065673,1758997865805,-480.0,0.00035616,9]
[388065674,1758997865815,-480.0,0.00035616,9]
[388065675,1758997865825,-480.0,0.00035616,9]
[388065676,1758997865834,-5287.15,0.00035616,3]
[388065677,1758997865845,-937.25,0.00035616,9]
[388065678,1758997865855,-760.22,0.00035616,9]
[388065679,1758997865865,-506.64,0.00035616,9]
[388065680,1758997865874,-480.0,0.00035616,9]
[388065681,1758997865884,-480.0,0.00035616,9]
[388065682,1758997865894,-480.0,0.00035616,9]
[388065683,1758997865904,-480.0,0.00035616,9]
[388065684,1758997865913,-3695.5,0.00035616,9]
[388065685,1758997865923,-480.0,0.00035616,9]
[388065686,1758997865933,-480.0,0.00035616,9]
[388065687,1758997865943,-480.0,0.00035616,9]
[388065688,1758997865952,-2360.86,0.00035616,9]
[388065689,1758997865962,-1126.85,0.00035616,9]
[388065690,1758997865972,-2195.77,0.00035616,9]
[388065691,1758997865982,-542.79824397,0.00035616,9]
[388065692,1758997865992,-480.0,0.00035616,9]
[388065693,1758997866002,-480.0,0.00035616,9]
[388065694,1758997866012,-480.0,0.00035616,9]
[388065695,1758997866021,-248.44200045,0.00035616,9]
[388065696,1758997866032,-480.0,0.00035616,9]
[388065697,1758997866042,-480.0,0.00035616,9]
[388065698,1758997866052,-480.0,0.00035616,9]
[388065699,1758997866062,-480.0,0.00035616,7]
[388065700,1758997866071,-480.0,0.00035616,9]
[388065701,1758997866081,-465.93204664,0.00035616,9]
[388065702,1758997866090,-480.0,0.00035616,9]
[388065703,1758997866100,-3172.01,0.00035616,9]
[388065704,1758997866110,-3081.13,0.00035616,9]
[388065705,1758997866119,-1319.99,0.00035616,9]
[388065706,1758997866129,-480.0,0.00035616,9]
[388065707,1758997866140,-877.25,0.00035616,9]
[388065708,1758997866150,-480.0,0.00035616,9]
[388065709,1758997866159,-9844.2,0.00035616,9]
[388065710,1758997866169,-480.0,0.00035616,9]
[388065711,1758997866179,-635.95,0.00035616,9]
[388065712,1758997866189,-3860.08,0.00035616,9]
[388065713,1758997866199,-7092.91,0.00035616,9]
[388065714,1758997866209,-480.0,0.00035616,9]
[388065715,1758997866219,-641.01,0.00035616,9]
[388065716,1758997866228,-480.0,0.00035616,9]
[388065717,1758997866238,-480.0,0.00035616,9]
[388065718,1758997866247,-480.0,0.00035616,9]
[388065719,1758997866257,-480.0,0.00035616,9]
[388065720,1758997866268,-480.0,0.00035616,9]
[388065721,1758997866278,-480.0,0.00035616,9]
[388065722,1758997866447,-4924.13,0.00035616,9]
[388065723,1758997866466,-480.0,0.00035616,9]
[388065724,1758997866476,-480.0,0.00035616,9]
[388065725,1758997866485,-480.0,0.00035616,9]
[388065726,1758997866495,-5282.46,0.00035616,9]
[388065727,1758997866504,-480.0,0.00035616,9]
[388065728,1758997866514,-823.53,0.00035616,9]
[388065729,1758997866524,-480.0,0.00035616,9]
[388065730,1758997866533,-490.45,0.00035616,9]
[388065731,1758997866543,-981.99,0.00035616,9]
[388065732,1758997866552,-741.53,0.00035616,9]
[388065733,1758997866562,-2847.4,0.00035616,9]
[388065734,1758997866571,-480.0,0.00035616,9]
[388065735,1758997866580,-480.0,0.00035616,9]
[388065736,1758997866589,-480.0,0.00035616,9]
[388065737,1758997866599,-1099.71,0.00035616,9]
[388065738,1758997866609,-480.0,0.00035616,9]
[388065739,1758997866619,-1703.91,0.00035616,9]
[388065740,1758997866632,-480.0,0.00035616,9]
[388065741,1758997866643,-513.3977491,0.00035616,9]
[388065742,1758997866652,-480.0,0.00035616,9]
[388065743,1758997866662,-481.73964426,0.00035616,9]
[388065744,1758997866671,-795.42,0.00035616,9]
[388065745,1758997866681,-480.0,0.00035616,9]
[388065746,1758997866691,-480.0,0.00035616,9]
[388065747,1758997866701,-480.0,0.00035616,9]
[388065748,1758997866710,-2239.46,0.00035616,9]
[388065749,1758997866719,-480.0,0.00035616,9]
[388065750,1758997866728,-754.28,0.00035616,9]
[388065751,1758997866738,-661.35,0.00035616,9]
[388065752,1758997866747,-480.0,0.00035616,9]
[388065753,1758997866757,-543.26,0.00035616,9]
[388065754,1758997866767,-480.0,0.00035616,9]
[388065755,1758997866777,-480.0,0.00035616,9]
[388065756,1758997866786,-509.6513986,0.00035616,9]
[388065757,1758997866795,-601.12140561,0.00035616,9]
[388065758,1758997866806,-510.93,0.00035616,9]
[388065759,1758997866816,-601.7552415,0.00035616,9]
[388065760,1758997866826,-1055.88,0.00035616,9]
[388065761,1758997866835,-480.0,0.00035616,9]
[388065762,1758997866844,-480.0,0.00035616,9]
[388065763,1758997866854,-480.0,0.00035616,9]
[388065764,1758997866863,-480.0,0.00035616,9]
[388065765,1758997866872,-480.0,0.00035616,9]
[388065766,1758997866882,-489.07,0.00035616,9]
[388065767,1758997866891,-480.0,0.00035616,9]
[388065768,1758997866900,-500.0,0.00035616,9]
[388065769,1758997866910,-500.0,0.00035616,9]
[388065770,1758997866919,-500.0,0.00035616,9]
[388065771,1758997866928,-500.0,0.00035616,9]
[388065772,1758997866938,-5302.41,0.00035616,9]
[388065773,1758997866948,-500.0,0.00035616,9]
[388065774,1758997866957,-480.0,0.00035616,9]
[388065775,1758997866967,-500.0,0.00035616,9]
[388065776,1758997866977,-500.0,0.00035616,9]
[388065777,1758997866987,-500.0,0.00035616,9]
[388065778,1758997866997,-678.36,0.00035616,9]
[388065779,1758997867006,-1027.71,0.00035616,9]
[388065780,1758997867016,-480.0,0.00035616,9]
[388065781,1758997867025,-944.7,0.00035616,9]
[388065782,1758997867035,-2136.95,0.00035616,9]
[388065783,1758997867045,-2136.95,0.00035616,9]
[388065784,1758997867054,-552.62236105,0.00035616,9]
[388065785,1758997867064,-2136.95,0.00035616,9]
[388065786,1758997867073,-2136.95,0.00035616,9]
[388065787,1758997867083,-480.0,0.00035616,9]
[388065788,1758997867092,-507.75,0.00035616,9]
[388065789,1758997867102,-2136.95,0.00035616,9]
[388065790,1758997867111,-2136.95,0.00035616,9]
[388065791,1758997867120,-429.11320756,0.00035616,9]
[388065792,1758997867129,-480.0,0.00035616,9]
[388065793,1758997867139,-2136.95,0.00035616,9]
[388065794,1758997867149,-2136.95,0.00035616,9]
[388065795,1758997867158,-1275.11,0.00035616,9]
[388065796,1758997867168,-480.0,0.00035616,9]
[388065797,1758997867178,-2136.95,0.00035616,9]
[388065798,1758997867188,-2136.95,0.00035616,9]
[388065799,1758997867197,-2136.95,0.00035616,9]
[388065800,1758997867207,-2136.95,0.00035616,9]
[388065801,1758997867216,-480.0,0.00035616,9]
[388065802,1758997867226,-2136.95,0.00035616,9]
[388065803,1758997867235,-809.87,0.00035616,9]
[388065804,1758997867246,-2136.95,0.00035616,9]
[388065805,1758997867255,-2136.95,0.00035616,9]
[388065806,1758997867264,-480.0,0.00035616,9]
[388065807,1758997867274,-2136.95,0.00035616,9]
[388065808,1758997867284,-480.0,0.00035616,9]
[388065809,1758997867293,-2136.95,0.00035616,9]
[388065810,1758997867303,-1082.0,0.00035616,9]
[388065811,1758997867312,-480.0,0.00035616,9]
[388065812,1758997867322,-2136.95,0.00035616,9]
[388065813,1758997867332,-2136.95,0.00035616,9]
[388065814,1758997867342,-2136.95,0.00035616,9]
[388065815,1758997867351,-2136.95,0.00035616,9]
[388065816,1758997867360,-480.0,0.00035616,9]
[388065817,1758997867370,-1689.0170134,0.00035616,9]
[388065818,1758997867669,-447.9329866,0.00035616,9]
[388065819,1758997867679,-480.0,0.00035616,9]
[388065820,1758997867689,-2136.95,0.00035616,9]
[388065821,1758997867699,-461.23410469,0.00035616,9]
[388065822,1758997867709,-9317.03,0.00035616,9]
[388065823,1758997867719,-2137.15442053,0.00035616,9]
[388065824,1758997867729,-480.0,0.00035616,9]
[388065825,1758997867739,-641.15,0.00035616,9]
[388065826,1758997867749,-804.44,0.00035616,9]
[388065827,1758997867759,-480.0,0.00035616,9]
[388065828,1758997867768,-480.0,0.00035616,9]
[388065829,1758997867778,-480.0,0.00035616,9]
[388065830,1758997867787,-480.0,0.00035616,9]
[388065831,1758997867797,-480.0,0.00035616,9]
[388065832,1758997867806,-2561.61,0.00035616,9]
[388065833,1758997867815,-480.0,0.00035616,9]
[388065834,1758997867824,-480.0,0.00035616,9]
[388065835,1758997867835,-1412.08,0.00035616,9]
[388065836,1758997867844,-3259.98,0.00035616,9]
[388065837,1758997867854,-480.0,0.00035616,9]
[388065838,1758997867863,-816.3,0.00035616,9]
[388065839,1758997867872,-480.0,0.00035616,9]
[388065840,1758997867882,-480.0,0.00035616,9]
[388065841,1758997867891,-1725.97,0.00035616,9]
[388065842,1758997867900,-2441.91,0.00035616,9]
[388065843,1758997867910,-480.0,0.00035616,9]
[388065844,1758997867919,-480.35930891,0.00035616,9]
[388065845,1758997867929,-480.0,0.00035616,9]
[388065846,1758997867939,-1049.37,0.00035616,9]
[388065847,1758997867949,-480.0,0.00035616,2]
[388065848,1758997867959,-480.0,0.00035616,9]
[388065849,1758997867969,-492.9,0.00035616,9]
[388065850,1758997867979,-480.0,0.00035616,9]
[388065851,1758997867988,-2584.0,0.00035616,9]
[388065852,1758997868000,-1739.89,0.00035616,9]
[388065853,1758997868010,-2488.71,0.00035616,9]
[388065854,1758997868019,-480.0,0.00035616,9]
[388065855,1758997868030,-1739.89,0.00035616,9]
[388065856,1758997868039,-1739.89,0.00035616,9]
[388065857,1758997868049,-1739.89,0.00035616,9]
[388065858,1758997868058,-1739.89,0.00035616,9]
[388065859,1758997868068,-1739.89,0.00035616,9]
[388065860,1758997868078,-1739.89,0.00035616,9]
[388065861,1758997868087,-1739.89,0.00035616,9]
[388065862,1758997868097,-480.0,0.00035616,9]
[388065863,1758997868107,-1739.89,0.00035616,9]
[388065864,1758997868117,-1739.89,0.00035616,9]
[388065865,1758997868127,-1739.89,0.00035616,9]
[388065866,1758997868136,-1739.89,0.00035616,9]
[388065867,1758997868146,-1739.89,0.00035616,9]
[388065868,1758997868156,-512.78,0.00035616,9]
[388065869,1758997868165,-480.0,0.00035616,9]
[388065870,1758997868175,-1739.89,0.00035616,9]
[388065871,1758997868184,-1739.89,0.00035616,9]
[388065872,1758997868194,-1739.89,0.00035616,9]
[388065873,1758997868204,-1739.89,0.00035616,9]
[388065874,1758997868213,-720.37,0.00035616,9]
[388065875,1758997868223,-1739.89,0.00035616,9]
[388065876,1758997868232,-482.14477258,0.00035616,9]
[388065877,1758997868242,-1739.89,0.00035616,9]
[388065878,1758997868252,-1739.89,0.00035616,9]
[388065879,1758997868261,-678.07,0.00035616,9]
[388065880,1758997868271,-1739.89,0.00035616,9]
[388065881,1758997868282,-1739.89,0.00035616,9]
[388065882,1758997868292,-1739.89,0.00035616,9]
[388065883,1758997868302,-1739.90050184,0.00035616,9]
[388065884,1758997868311,-480.05256192,0.00035616,9]
[388065885,1758997868322,-480.0,0.00035616,9]
[388065886,1758997868332,-480.0,0.00035616,9]
[388065887,1758997868342,-1947.34,0.00035616,9]
[388065888,1758997868353,-4936.06,0.00035616,9]
[388065889,1758997868363,-480.0,0.00035616,9]
[388065890,1758997868373,-694.56,0.00035616,9]
[388065891,1758997868383,-480.0,0.00035616,9]
[388065892,1758997868392,-480.0,0.00035616,9]
[388065893,1758997868404,-480.0,0.00035616,9]
[388065894,1758997868414,-480.0,0.00035616,9]
[388065895,1758997868424,-6118.56,0.00035616,9]
[388065896,1758997868434,-480.0,0.00035616,9]
[388065897,1758997868443,-480.0,0.00035616,9]
[388065898,1758997868454,-480.0,0.00035616,9]
[388065899,1758997868464,-1176.28,0.00035616,9]
[388065900,1758997868473,-482.42097777,0.00035616,9]
[388065901,1758997868483,-480.0,0.00035616,9]
[388065902,1758997868494,-870.93,0.00035616,9]
[388065903,1758997868503,-752.9,0.00035616,9]
[388065904,1758997868513,-461.40353451,0.00035616,9]
[388065905,1758997868522,-535.46,0.00035616,9]
[388065906,1758997868531,-411.20762256,0.00035616,9]
[388065907,1758997868540,-480.0,0.00035616,9]
[388065908,1758997868550,-480.0,0.00035616,9]
[388065909,1758997868559,-1004.31,0.00035616,9]
[388065910,1758997868569,-480.0,0.00035616,9]
[388065911,1758997868579,-480.0,0.00035616,9]
[388065912,1758997868588,-492.63,0.00035616,9]
[388065913,1758997868598,-480.0,0.00035616,9]
[388065914,1758997868607,-480.0,0.00035616,9]
[388065915,1758997868617,-480.0,0.00035616,9]
[388065916,1758997868626,-480.0,0.00035616,9]
[388065917,1758997868636,-480.0,0.00035616,9]
[388065918,1758997868645,-480.0,0.00035616,9]
[388065919,1758997868655,-3100.91,0.00035616,9]
[388065920,1758997868666,-480.0,0.00035616,9]
[388065921,1758997868675,-480.0,0.00035616,9]
[388065922,1758997868684,-480.0,0.00035616,9]
[388065923,1758997868694,-2875.15,0.00035616,9]
[388065924,1758997868754,-480.0,0.00035616,9]
[388065925,1758997868764,-1289.02,0.00035616,9]
[388065926,1758997868774,-3165.25,0.00035616,9]
[388065927,1758997868783,-480.0,0.00035616,9]
[388065928,1758997868793,-480.0,0.00035616,9]
[388065929,1758997868802,-555.53,0.00035616,9]
[388065930,1758997868811,-480.0,0.00035616,9]
[388065931,1758997868821,-1487.53,0.00035616,9]
[388065932,1758997868831,-1709.99,0.00035616,9]
[388065933,1758997868842,-480.0,0.00035616,9]
[388065934,1758997868851,-740.14,0.00035616,9]
[388065935,1758997868861,-549.74,0.00035616,9]
[388065936,1758997868871,-621.24,0.00035616,9]
[388065937,1758997868881,-1374.87,0.00035616,9]
[388065938,1758997868891,-773.42,0.00035616,9]
[388065939,1758997868901,-480.0,0.00035616,9]
[388065940,1758997868910,-490.54531804,0.00035616,9]
[388065941,1758997868919,-480.0,0.00035616,9]
[388065942,1758997868928,-500.0,0.00035616,9]
[388065943,1758997868938,-480.0,0.00035616,9]
[388065944,1758997868947,-500.0,0.00035616,9]
[388065945,1758997868956,-480.0,0.00035616,9]
[388065946,1758997868966,-480.0,0.00035616,9]
[388065947,1758997868975,-500.0,0.00035616,9]
[388065948,1758997868984,-500.0,0.00035616,9]
[388065949,1758997868997,-618.60433297,0.00035616,9]
[388065950,1758997869011,-480.0,0.00035616,9]
[388065951,1758997869021,-480.0,0.00035616,9]
[388065952,1758997869031,-701.08,0.00035616,9]
[388065953,1758997869040,-480.0,0.00035616,9]
[388065954,1758997869049,-480.0,0.00035616,9]
[388065955,1758997869059,-4048.75,0.00035616,9]
[388065956,1758997869069,-480.0,0.00035616,9]
[388065957,1758997869079,-480.0,0.00035616,9]
[388065958,1758997869088,-635.1,0.00035616,9]
[388065959,1758997869098,-4044.55,0.00035616,9]
[388065960,1758997869107,-480.0,0.00035616,9]
[388065961,1758997869117,-480.0,0.00035616,9]
[388065962,1758997869131,-1159.91,0.00035616,9]
[388065963,1758997869140,-1159.91,0.00035616,9]
[388065964,1758997869150,-1159.91,0.00035616,9]
[388065965,1758997869160,-1159.91,0.00035616,9]
[388065966,1758997869170,-773.78,0.00035616,9]
[388065967,1758997869180,-480.0,0.00035616,9]
[388065968,1758997869190,-480.0,0.00035616,9]
[388065969,1758997869200,-1159.91,0.00035616,9]
[388065970,1758997869210,-1159.91,0.00035616,9]
[388065971,1758997869219,-1159.91,0.00035616,9]
[388065972,1758997869228,-1159.91,0.00035616,9]
[388065973,1758997869238,-480.0,0.00035616,9]
[388065974,1758997869247,-1159.91,0.00035616,9]
[388065975,1758997869256,-480.0,0.00035616,9]
[388065976,1758997869266,-1159.91,0.00035616,9]
[388065977,1758997869275,-1159.91,0.00035616,9]
[388065978,1758997869284,-1159.91,0.00035616,9]
[388065979,1758997869294,-1159.91,0.00035616,9]
[388065980,1758997869303,-1159.91,0.00035616,9]
[388065981,1758997869313,-1222.14254617,0.00035619,5]
[388065982,1758997869323,-511.86353842,0.00035639,120]
[388065983,1758997869333,-151.0,0.000357,19]
[388065984,1758997869343,-165.649325,0.00035771,30]
[388065985,1758997869353,-500.0,0.00035773,30]
[388065986,1758997869363,-233.76631357,0.00035774,2]
[388065987,1758997869373,-165.649325,0.00035795,30]
[388065988,1758997869383,-653.0,0.000358,2]
[388065989,1758997869392,-1000.0,0.00035873,5]
[388065990,1758997869404,-480.0,0.0003589,9]
[388065991,1758997869415,-274.32918763,0.0003589,9]
[388065992,1758997869425,-480.0,0.0003589,9]
[388065993,1758997869435,-821.95,0.0003589,9]
[388065994,1758997869444,-480.0,0.0003589,9]
[388065995,1758997869455,-480.0,0.0003589,9]
[388065996,1758997869465,-480.0,0.0003589,9]
[388065997,1758997869475,-480.0,0.0003589,9]
[388065998,1758997869485,-480.0,0.0003589,9]
[388065999,1758997869494,-480.0,0.0003589,9]
[388066000,1758997869504,-480.0,0.0003589,9]
[388066001,1758997869514,-480.0,0.0003589,9]
[388066002,1758997869523,-480.0,0.0003589,9]
[388066003,1758997869533,-579.96,0.0003589,9]
[388066004,1758997869542,-480.0,0.0003589,9]
[388066005,1758997869551,-480.0,0.0003589,9]
[388066006,1758997869561,-480.0,0.0003589,9]
[388066007,1758997869570,-480.0,0.0003589,9]
[388066008,1758997869581,-480.0,0.0003589,9]
[388066009,1758997869590,-461.57291672,0.0003589,9]
[388066010,1758997869600,-482.38846735,0.0003589,9]
[388066011,1758997869609,-745.71,0.0003589,9]
[388066012,1758997869619,-480.0,0.0003589,9]
[388066013,1758997869629,-319.46823745,0.0003589,9]
[388066014,1758997869639,-1246.41,0.0003589,9]
[388066015,1758997869649,-480.0,0.0003589,9]
[388066016,1758997869658,-480.0,0.0003589,9]
[388066017,1758997869667,-480.0,0.0003589,9]
[388066018,1758997869676,-480.0,0.0003589,9]
[388066019,1758997869686,-480.0,0.0003589,7]
[388066020,1758997869695,-480.0,0.0003589,9]
[388066021,1758997869705,-480.0,0.0003589,9]
[388066022,1758997869714,-480.0,0.0003589,9]
[388066023,1758997869724,-480.0,0.0003589,9]
[388066024,1758997869733,-483.9065606,0.0003589,9]
[388066025,1758997869742,-480.0,0.0003589,9]
[388066026,1758997869752,-480.0,0.0003589,9]
[388066027,1758997869762,-480.0,0.0003589,9]
[388066028,1758997869771,-480.0,0.0003589,9]
[388066029,1758997869781,-480.0,0.0003589,9]
[388066030,1758997869791,-1460.45,0.0003589,9]
[388066031,1758997869801,-480.0,0.0003589,9]
[388066032,1758997869812,-611.76,0.0003589,9]
[388066033,1758997869823,-516.72430656,0.0003589,9]
[388066034,1758997869832,-480.0,0.0003589,9]
[388066035,1758997869842,-480.0,0.0003589,9]
[388066036,1758997869851,-480.0,0.0003589,9]
[388066037,1758997869861,-518.72297874,0.0003589,9]
[388066038,1758997869871,-480.0,0.0003589,9]
[388066039,1758997869880,-480.0,0.0003589,9]
[388066040,1758997869890,-924.86,0.0003589,9]
[388066041,1758997869899,-480.0,0.0003589,9]
[388066042,1758997869909,-480.0,0.0003589,9]
[388066043,1758997869918,-480.0,0.0003589,9]
[388066044,1758997869927,-480.0,0.0003589,9]
[388066045,1758997869937,-480.0,0.0003589,9]
[388066046,1758997869946,-480.0,0.0003589,9]
[388066047,1758997869955,-480.0,0.0003589,9]
[388066048,1758997869965,-586.41,0.0003589,9]
[388066049,1758997869974,-480.0,0.0003589,9]
[388066050,1758997869985,-480.0,0.0003589,9]
[388066051,1758997869996,-480.0,0.0003589,9]
[388066052,1758997870006,-481.42249477,0.0003589,9]
[388066053,1758997870015,-640.13,0.0003589,9]
[388066054,1758997870025,-838.78,0.0003589,9]
[388066055,1758997870035,-480.0,0.0003589,9]
[388066056,1758997870045,-480.0,0.0003589,9]
[388066057,1758997870055,-480.0,0.0003589,9]